Cogmind - Beta 16 @@@ ROGUE MODE // 2026.01.04 @ 07:04:59 Player: LYMPH NODE JONES Result: Destroyed by YI-UF0 with YI-UF0's Doublenader Performance ------------- Evolutions (0) 0 Regions Visited (2) 400 Robots Destroyed (12) 60 Value Destroyed (198) 198 Prototype IDs (0) 0 Alien Tech Used (0) 0 Bonus (0) 0 TOTAL SCORE: 658 Bonus ------- None Cogmind --------- Core Integrity 0/250 Matter 298/300 Energy 100/100 System Corruption 0% Temperature Cool (0) Movement Core (150) Ox2 Location -10/Mines Parts ------- > --- POWER (1) -------- (None) > --- PROPULSION (2) --- (None) > --- UTILITY (2) ------ Small Storage Unit Targeting Computer > --- WEAPON (2) ------- Light Assault Rifle Light Assault Rifle > --- INVENTORY (8) ---- Ion Engine Light Ion Engine Aluminum Leg Aluminum Leg EM Pulse Gun Light Assault Rifle Mining Laser Peak State ------------ > --- POWER ------------ Ion Engine > --- PROPULSION ------- Aluminum Leg Aluminum Leg > --- UTILITY ---------- Small Storage Unit Medium Matter Pod > --- WEAPON ----------- Particle Gun Light Assault Rifle > --- INVENTORY -------- Ion Engine Light Ion Engine Aluminum Leg [Rating: 8] Favorites ----------- Power Light Ion Engine Engine Light Ion Engine Propulsion Aluminum Leg Leg Aluminum Leg Utility Small Storage Unit Storage Small Storage Unit Processor Targeting Computer Weapon Light Assault Rifle Energy Gun Particle Gun Ballistic Gun Light Assault Rifle Build | -11 -10 -10 ------- Run | Yrd Mat Min Slots Evolved . | . . . Power . | . . . Propulsion . | . . . Utility . | . . . Weapon . | . . . Parts Attached 16 | 6 7 3 Power 3 | 1 1 1 Engine 3 | 1 1 1 Core . | . . . Reactor . | . . . Propulsion 4 | 2 2 . Treads . | . . . Leg 4 | 2 2 . Wheel . | . . . Hover . | . . . Flight . | . . . Utility 3 | 1 2 . Device . | . . . Storage 2 | 1 1 . Processor 1 | . 1 . Hackware . | . . . Protection . | . . . Artifact . | . . . Weapon 6 | 2 2 2 Energy Gun 3 | 1 2 . Energy Cannon . | . . . Ballistic Gun 3 | 1 . 2 Ballistic Cannon . | . . . Launcher . | . . . Special Weapon . | . . . Impact Weapon . | . . . Slashing Weapon . | . . . Piercing Weapon . | . . . Special Melee Weapon . | . . . Unidentified Prototypes . | . . . Parts Lost 5 | . 2 3 Power 2 | . 1 1 Propulsion 2 | . . 2 Utility . | . . . Weapon 1 | . 1 . Highest Loss Streak 3 | . 2 3 To Critical Strikes . | . . . Average Backups 4 | 1 3 6 Power 1 | . 1 2 Propulsion 1 | . 1 2 Utility . | . . . Weapon 1 | . . 2 Tool/Special . | . . . Unused Backups 7 | . . 7 Power 3 | . . 3 Propulsion 1 | . . 1 Utility . | . . . Weapon 3 | . . 3 Tool/Special . | . . . Average Slot Usage (%) 98 | . 97 99 Engine 13 | . 13 14 Leg 28 | . 28 28 Storage 20 | . 24 14 Processor 7 | . 2 14 Energy Gun 8 | . 13 . Ballistic Gun 19 | . 14 26 Peak Build Rating 8 | 6 8 8 Average Rating 7 | 4 7 7 On Entrance 4 | . 6 8 Avg Prop Armor Cover (%) . | . . . Naked Turns . | . . . Heaviest Build 16 | 11 16 12 Greatest Support 20 | 20 20 20 Greatest Overweight (x) . | . . . Average Overweight (x) . | . . . Largest Inventory Capacity 8 | 8 8 8 Average Capacity 7 | 6 8 8 Most Carried 7 | 2 5 7 Average Carried 4 | 1 3 6 Final Capacity 8 | 8 8 8 Final Carried 7 | 2 5 7 Class Distribution -------------------- 74% | Scavenger-Mutant 25% | Mutant Dominant Class ---------------- Scavenger-Mutant | -10/Materials Scavenger-Mutant | -10/Mines Resources | -11 -10 -10 ----------- Run | Yrd Mat Min Matter Collected 484 | 232 211 41 Remotely . | . . . Salvage Created 383 | . 244 139 Parts 23 | . 12 11 Haulers Intercepted . | . . . Recyclers Shooed 1 | . . 1 Parts Field Recycled . | . . . Retrieved Matter . | . . . Parts Self-Destructed . | . . . Prevented . | . . . Parts Restored . | . . . Kills | -11 -10 -10 ------- Run | Yrd Mat Min Combat Hostiles Destroyed 9 | . 6 3 Guns 9 | . 6 3 Classes Destroyed 5 | . 4 1 Worker 1 | . 1 . Recycler 1 | . . 1 Watcher 1 | . 1 . Swarmer 6 | . 3 3 Grunt 3 | . 3 . Best Kill Streak 5 | . 5 3 Combat Bots Only 4 | . 4 3 Max Kills in Single Turn 2 | . 1 2 Gunslinging 1 | . . 1 Exploded . | . . . Melee . | . . . Uniques/NPCs Destroyed . | . . . Combat | -11 -10 -10 -------- Run | Yrd Mat Min Hostile Shots Fired 70 | . 42 28 Missed 12 | . 9 3 Hits 58 | . 33 25 Projectile 58 | . 33 25 AOE 18 | . . 18 Damage Taken 976 | . 325 651 Core 251 | . 57 194 Absorbed by Shields . | . . . Core Remaining (%) 100 | 100 . . Volleys Fired 40 | . 25 15 Largest 2 | . 2 2 Hottest 85 | . 85 85 Shots Fired 71 | . 41 30 Gun 71 | . 41 30 Cannon . | . . . Launcher . | . . . Special . | . . . Kinetic 49 | . 25 24 Thermal 13 | . 7 6 Explosive . | . . . Electromagnetic 9 | . 9 . Robot Hit Streak 10 | . 8 10 Robot Miss Streak 4 | . 4 3 Penetration Max . | . . . Secondary Targets 3 | . 2 1 Max Gunslinging Chain 1 | . 1 1 Shots Hit Robots 42 | . 23 19 Core Hits 21 | . 14 7 Critical Kills . | . . . Critical Parts Destroyed . | . . . Critical Strikes . | . . . Melee Attacks . | . . . Impact . | . . . Slashing . | . . . Piercing . | . . . Sneak Attacks . | . . . Combat Hostiles . | . . . Follow-up Attacks . | . . . Damage Inflicted 390 | . 217 173 Guns 390 | . 217 173 Cannons . | . . . Explosions . | . . . Melee . | . . . Ramming . | . . . Kinetic 245 | . 117 128 Thermal 84 | . 39 45 Explosive . | . . . Electromagnetic 61 | . 61 . Impact . | . . . Slashing . | . . . Piercing . | . . . Highest Corruption . | . . . Average Corruption . | . . . Corruption Purged . | . . . Corruption Blocked . | . . . Overload Shots . | . . . Overflow Damage . | . . . Projectiles . | . . . Explosions . | . . . Melee . | . . . Knockbacks . | . . . Impact . | . . . Kinetic . | . . . Secondary . | . . . Self-Inflicted Damage . | . . . Shots . | . . . Rammed . | . . . Targets Rammed . | . . . Kicked . | . . . Crushed . | . . . Highest Temperature 184 | . 88 184 Average Temperature 42 | . 23 87 Received Heat Transfer 96 | . 96 . Siege Activations . | . . . Martial Activations . | . . . Shielding Activations . | . . . Robots Disrupted . | . . . Combat Hostiles . | . . . Robots Corrupted . | . . . Combat Hostiles . | . . . Parts Fried . | . . . Impact Corruptions . | . . . Robots Melted . | . . . Combat Hostiles . | . . . Parts Melted . | . . . Heat Transferred 198 | . 87 111 Parts Sabotaged . | . . . Parts Stolen . | . . . Parts Stripped . | . . . Power Chain Reactions . | . . . Alert | -11 -10 -10 ------- Run | Yrd Mat Min Maximum Alert Level . | . . . Low Security (%) 100 | 100 100 100 Level 1 . | . . . Level 2 . | . . . Level 3 . | . . . Level 4 . | . . . Level 5 . | . . . High Security . | . . . Max Security . | . . . Peak Influence 105 | . 105 70 Initial . | . . . Average 20 | . 27 13 Influence Increases 268 | . 193 75 Destroy 0b10 Robot/C 180 | . 120 60 Destroy 0b10 Robot/NC 15 | . 10 5 Destroy Leader 32 | . 22 10 Successful Hack 11 | . 11 . Lose Combat Pursuer 30 | . 30 . Influence Decreases 268 | . 193 75 Time Decay 248 | . 173 75 Lost Part 20 | . 20 . Squads Dispatched 1 | . 1 . Investigation . | . . . Extermination . | . . . Reinforcement 1 | . 1 . Assault . | . . . Garrison . | . . . Intercept . | . . . Searches Triggered . | . . . Construction Impeded . | . . . Haulers Reinforced . | . . . Active Scanning Responses . | . . . Cargo Convoy Interrupts . | . . . Stealth | -11 -10 -10 --------- Run | Yrd Mat Min Distress Signals 3 | . 3 . Communications Jammed . | . . . Distress Signals . | . . . Times Spotted 24 | . 20 4 Peak Tracking Total 7 | . 7 3 Tactical Retreats 1 | . 1 . Traps | -11 -10 -10 ------- Run | Yrd Mat Min Traps Triggered . | . . . Indirectly . | . . . Trap Hack Attempts . | . . . Triggered . | . . . Disarmed . | . . . Reprogrammed . | . . . Reused . | . . . Traps Extracted . | . . . Installed . | . . . Triggered . | . . . Machines | -11 -10 -10 ---------- Run | Yrd Mat Min Machines Disabled . | . . . Max in Single Turn . | . . . Machines Repaired . | . . . Machines Dismantled . | . . . Machines Sabotaged . | . . . Overloaded Fab Kills . | . . . Hacking | -11 -10 -10 --------- Run | Yrd Mat Min Machines Accessed 3 | . 3 . Terminals 2 | . 2 . Fabricators . | . . . Repair Stations 1 | . 1 . Recycling Units . | . . . Scanalyzers . | . . . Garrison Access . | . . . Total Hacks 12 | . 12 . Successful 5 | . 5 . Failed 7 | . 7 . Catastrophic 3 | . 3 . Database Lockouts . | . . . Manual . | . . . Terminals 9 | . 9 . Fabricators . | . . . Repair Stations 3 | . 3 . Recycling Units . | . . . Scanalyzers . | . . . Garrison Access . | . . . Terminal Hacks 4 | . 4 . Record 1 | . 1 . Robot Analysis 1 | . 1 . Alert Level 1 | . 1 . Zone Layout 1 | . 1 . Fabricator Hacks . | . . . Repair Station Hacks 1 | . 1 . Scan Component 1 | . 1 . Recycling Unit Hacks . | . . . Scanalyzer . | . . . Garrison Access Hacks . | . . . Unauthorized Hacks . | . . . Terminals . | . . . Fabricators . | . . . Repair Stations . | . . . Recycling Units . | . . . Scanalyzers . | . . . Garrison Access . | . . . Data Cores Recovered . | . . . Used . | . . . Hacking Detections 3 | . 3 . Full Trace Events . | . . . Feedback Events . | . . . Feedback Blocked . | . . . Robot Schematics Acquired . | . . . Robots Built . | . . . Authchips . | . . . Time . | . . . Total Robot Build Rating . | . . . Part Schematics Acquired . | . . . Parts Built . | . . . Authchips . | . . . Time . | . . . Total Part Build Rating . | . . . Part Studies Acquired . | . . . Parts Repaired . | . . . Time . | . . . Parts Recycled . | . . . Recycled Matter . | . . . Retrieved Matter . | . . . Retrieved Components . | . . . Parts Scanalyzed . | . . . Part Schematics Acquired . | . . . Parts Damaged . | . . . Bothacking | -11 -10 -10 ------------ Run | Yrd Mat Min Used RIF Installer . | . . . Robots Hacked . | . . . Non-combat . | . . . Combat . | . . . Robot Hacks Applied . | . . . Relay Couplers Released . | . . . Fabnet Peak Effective % . | . . . Robots Rewired . | . . . Allies Hacked . | . . . Hacks Repelled . | . . . Allies | -11 -10 -10 -------- Run | Yrd Mat Min Total Allies 1 | . . 1 Largest Group 1 | . . 1 Highest-Rated Group 31 | . . 31 Highest-Rated Ally 31 | . . 31 Total Orders . | . . . Ally Attacks . | . . . Total Damage . | . . . Kills . | . . . Allies Corrupted . | . . . Allies Melted . | . . . Intel | -11 -10 -10 ------- Run | Yrd Mat Min Active Infowar (turns) . | . . . Robot Analysis Total 1 | . 1 . Derelict Logs Recovered . | . . . Drone Launches . | . . . Drone Recoveries . | . . . Exploration | -11 -10 -10 ------------- Run | Yrd Mat Min Turns Passed 1078 | 75 593 410 Spaces Moved 729 | 57 410 262 Core 5 | 5 . . Treads . | . . . Legs 724 | 52 410 262 Wheels . | . . . Hover . | . . . Flight . | . . . Fastest Speed 50 | 50 120 120 Average Speed 119 | 113 120 120 Slowest Speed 120 | 120 120 120 Overloaded Moves . | . . . Propulsion Burnouts . | . . . Robots Hopped . | . . . Potential Cave-ins . | . . . Cave-ins Triggered . | . . . Exploration Rate (%) 34 | 4 51 47 Regions Visited 2 Branch Regions 1 Pre-discovered Areas . | . . . Known Exits Taken . | . . . Unknown Exits Taken 2 | 1 1 . Scrap Searched . | . . . Spaces Dug . | . . . Terrain Destroyed . | . . . Melee . | . . . Projectile . | . . . AOE . | . . . Terrain Rammed . | . . . Walls Destroyed . | . . . Machines Disabled . | . . . Actions | -11 -10 -10 --------- Run | Yrd Mat Min Total 872 | 64 474 334 Wait 71 | . 25 46 Move 727 | 56 409 262 Hop . | . . . Pick Up 9 | 2 4 3 Fast Attach 14 | 6 5 3 Attach 1 | . 1 . Detach 1 | . . 1 Swap 1 | . 1 . Drop 8 | . 4 4 Fire 40 | . 25 15 Melee . | . . . Ram . | . . . Kick . | . . . Crush . | . . . Escape Stasis . | . . . Rewire . | . . . Trap . | . . . Miscellaneous . | . . . Route ------- -11/Scrapyard -10/Materials -10/Mines (discovered 2 exits: [*Mat] / [*Sub]) History --------- Turn | Location | Event 7 | -11/Scrapyard | Discovered new exit (range 16) 76 | -11/Scrapyard | Entered Materials 562 | -10/Materials | Build established: Scavenger-Mutant 570 | -10/Materials | Discovered new exit (range 16) 669 | -10/Materials | Entered Mines 715 | -10/Mines | Met a Derelict bent on vengeance 736 | -10/Mines | Discovered new exit (range 5) 771 | -10/Mines | Discovered new exit (range 14) 893 | -10/Mines | Received a Mining Laser from a helpful Derelict 1064 | -10/Mines | Core integrity fell below 50% 1076 | -10/Mines | Core integrity fell below 20% 1079 | -10/Mines | Destroyed by YI-UF0 with YI-UF0's Doublenader Last Messages --------------- down? Here, take my spare." 00896_ WF-GUV(g): "You're apparently new around these parts, I'll cover you." 00899_ WF-GUV(g): "Mining lasers are a lot more useful than you might think..." 00899_ Acquired Mining Laser. 00923_ K-01 Serf collects debris. 01061_ The unstable cave ceiling collapses. 01061_ T-07 Excavator destroyed. 01062_ K-01 Serf collects debris. 01063_ YI-UF0: "KABOOM!" 01063_ WF-GUV(g) destroyed. 01066_ K-01 Serf collects debris. 01070_ The unstable cave ceiling collapses. 01070_ K-01 Serf collects debris. 01075_ The unstable cave ceiling collapses. 01075_ Aluminum Leg destroyed. 01075_ Lgt. Ion Engine destroyed. 01076_ The unstable cave ceiling collapses. 01079_ K-01 Serf collects debris. Map ----- +----------------------------------------------------+ | | | | | | | ?????????????????????????????????????????????????? | | ?????????????????????????????????????????????????? | | ?????????????????????????????????????????????????? | | ??????????????????????????????????????###??????### | | ?????????????????????????????????????## #???## | | ?????????????????????????????????????# #### | | ?????????????????????????????????????# | | ??????????????????????????????????????# """ | | ???????????????????????????????????????# """ | | ???????????????????????????????????????## """ | | ????????????????????????????????????????## ## | | ?????????????????????????????????????????##### | | ????????????????????????????????????????????## # | | ???????????????????????????????????????????## # | | ?????????????????????????????????????????### | | ????????????????????????????????????????## | | ????????????##????????#####?###????????## | | ???????????? ??????# ### ##???##### | | ????????????? ???## #???# | | ???????????????# ## k ##### #### ### | | ???????????????? k #??#### ##?? | | ???????????????????# ## #####?????####??? | | ???????????????????# @ ## #???????????????? | | ???????????????????# ### #???????????????? | | ??????????????????# #?# #?????#####?????# | | ??????????????????# #?# #????## ###??## | | ????????????????? ##?# #??### #### | | ??????????????? ??# #### ## | | ?????????????! k #?# | | ???????????? ### #?# ### | | ?????????????? #?# #?# ## | | ????????????? ####?# #?# #### "" | | ?????????????? # # g ???### #?## ##??## "" | | ??????????????? ### #???# #??#####????## "" | | ??????????????????# #????# ###????????????# | | ?????????????????? ?????# #??????????????# | | ????????????????????? # ?????# #?####?????????## | | ??????????????????????? ?????# #?# #??????????### | | ?????????????????????????##### ### ##???????????? | | ??????????????????????#### ##??????????? | | ?????????????????????## ##?????????? | | ?????????????????????# #### #?????????? | | ?????????????????????# #??# ##????????? | | ?????????????????????## ##??# ##???????? | | ??????????????????????#######???# #???????? | | ????????????????????????????????# #???????? | | ????????????????????????????????## ## ##??????? | +----------------------------------------------------+ Best States ------------- Heat Dissipation 25 Energy Generation 10 Energy Capacity 250 Matter Stores 400 Matter Capacity 400 Sight Range 16 Terrain Scan Density 10 Evasion (%) 55 Targeting Accuracy 5 Item Schematics ----------------- None Robot Schematics ------------------ None Fabricated ------------ Nothing Repaired ---------- Nothing Studied --------- None Alien Tech Used ----------------- None Achievements -------------- None Challenges ------------ None Game ------ Seed RefineryStrikeSabre Manual? 0 Play Time 00:18:08 Cumulative 12.6 hours Start 2026.01.04 @ 06:39:11 End 2026.01.04 @ 07:04:59 Sessions 1 Manual Loads 0 Difficulty Rogue Special Mode None Game No. 31 Rogue 31 Adventurer 0 Explorer 0 Win Type - Total 0 Types 0/0/0/0/0/0/0/0/0/0 Lore% 9 Gallery% 12 Achievement% 13 Wizard Run 0 Options --------- Layout 1 ASCII 0 Keyboard 0 Movement Arrows Keybinds 0 Fullscreen 1 Font 16/SmallcapsGlow Map View 50x40 Zoom Use 0% Tactical HUD 1 Map Filters NONE Filters NONE Steam SD RUN: 9a9e731a-e0ad-402e-82c1-95b27e2279de